fUST/lending_fUST_20250720
["ID","MTS","AMOUNT","RATE_DAILY","PERIOD"]
[373435623,1753009849918,-2289.18923124,0.00020555,3]
[373435624,1753009849927,-500.0,0.00020563,2]
[373435625,1753009849936,-3000.0,0.000206,2]
[373435626,1753009849946,-3000.0,0.0002061,2]
[373435627,1753009849955,-3000.0,0.0002062,2]
[373435628,1753009849963,-3000.0,0.0002063,2]
[373435629,1753009849973,-3000.0,0.0002064,2]
[373435630,1753009849982,-3000.0,0.0002065,2]
[373435631,1753009849991,-3000.0,0.0002066,2]
[373435632,1753009850000,-8803.52212679,0.0002066,3]
[373435633,1753009850009,-160.0,0.0002066,3]
[373435634,1753009850018,-476.42619115,0.0002066,3]
[373435635,1753009850027,-214.5637056,0.0002066,3]
[373435636,1753009850036,-3000.0,0.0002067,2]
[373435637,1753009850046,-3000.0,0.0002068,2]
[373435638,1753009850055,-3000.0,0.0002069,2]
[373435639,1753009850064,-3000.0,0.000207,2]
[373435640,1753009850073,-3000.0,0.0002071,2]
[373435641,1753009850083,-15917.01168533,0.0002071,2]
[373435642,1753009850093,-3000.0,0.0002072,2]
[373435643,1753009850103,-151.0,0.00020728,2]
[373435644,1753009850112,-3000.0,0.0002073,2]
[373435645,1753009850122,-3000.0,0.0002074,2]
[373435646,1753009850131,-3000.0,0.0002075,2]
[373435647,1753009850141,-3000.0,0.0002076,2]
[373435648,1753009850153,-2289.18923124,0.00020762,3]
[373435649,1753009850162,-215.0738,0.00020763,2]
[373435650,1753009850172,-151.0,0.00020763,2]
[373435651,1753009850181,-151.0,0.00020763,2]
[373435652,1753009850191,-151.0,0.00020763,2]
[373435653,1753009850200,-151.0,0.00020763,2]
[373435654,1753009850210,-151.0,0.00020763,2]
[373435655,1753009850219,-151.0,0.00020763,2]
[373435656,1753009850229,-151.0,0.00020763,2]
[373435657,1753009850240,-151.0,0.00020763,2]
[373435658,1753009850249,-151.0,0.00020763,2]
[373435659,1753009850259,-151.0,0.00020763,2]
[373435660,1753009850268,-151.0,0.00020763,2]
[373435661,1753009850277,-151.0,0.00020763,2]
[373435662,1753009850287,-151.0,0.00020763,2]
[373435663,1753009850297,-151.0,0.00020763,2]
[373435664,1753009850306,-151.0,0.00020763,2]
[373435665,1753009850315,-25000.0,0.00020763,2]
[373435666,1753009850325,-151.0,0.00020763,2]
[373435667,1753009850335,-151.0,0.00020763,2]
[373435668,1753009850344,-151.0,0.00020763,2]
[373435669,1753009850384,-151.0,0.00020763,2]
[373435670,1753009850393,-151.0,0.00020763,2]
[373435671,1753009850403,-3000.0,0.0002077,2]
[373435672,1753009850412,-242.99041966,0.00020776,2]
[373435673,1753009850421,-3000.0,0.0002078,2]
[373435674,1753009850430,-502.06587387,0.00020787,2]
[373435675,1753009850439,-3000.0,0.0002079,2]
[373435676,1753009850448,-1074.71,0.00020794,2]
[373435677,1753009850458,-460.0,0.00020794,2]
[373435678,1753009850467,-460.0,0.00020794,2]
[373435679,1753009850476,-460.0,0.00020797,2]
[373435680,1753009850485,-460.0,0.00020797,2]
[373435681,1753009850495,-3000.0,0.000208,2]
[373435682,1753009850504,-748.02,0.00020804,2]
[373435683,1753009850514,-3000.0,0.0002081,2]
[373435684,1753009850523,-3000.0,0.0002082,2]
[373435685,1753009850532,-3000.0,0.0002083,2]
[373435686,1753009850543,-3000.0,0.0002084,2]
[373435687,1753009850553,-3000.0,0.0002085,2]
[373435688,1753009850562,-3000.0,0.0002086,2]
[373435689,1753009850571,-3000.0,0.0002087,2]
[373435690,1753009850581,-3000.0,0.0002088,2]
[373435691,1753009850591,-3000.0,0.0002089,2]
[373435692,1753009850600,-3000.0,0.000209,2]
[373435693,1753009850609,-3000.0,0.0002091,2]
[373435694,1753009850618,-3000.0,0.0002092,2]
[373435695,1753009850627,-3000.0,0.0002093,2]
[373435696,1753009850636,-3000.0,0.0002094,2]
[373435697,1753009850647,-3000.0,0.0002095,2]
[373435698,1753009850655,-3000.0,0.0002096,2]
[373435699,1753009850665,-2289.18923124,0.00020969,4]
[373435700,1753009850674,-3824.473726,0.0002097,2]
[373435701,1753009850683,-500.0,0.00021064,2]
[373435702,1753009850692,-1074.71,0.00021068,2]
[373435703,1753009850701,-460.0,0.00021068,2]
[373435704,1753009850710,-460.0,0.00021068,2]
[373435705,1753009850719,-460.0,0.00021071,2]
[373435706,1753009850729,-460.0,0.00021071,2]
[373435707,1753009850738,-1000.0,0.0002111,2]
[373435708,1753009850747,-2289.18923124,0.00021176,4]
[373435709,1753009850757,-25000.0,0.00021311,2]
[373435710,1753009850766,-1074.71,0.00021342,2]
[373435711,1753009850776,-460.0,0.00021342,2]
[373435712,1753009850786,-460.0,0.00021342,2]
[373435713,1753009850796,-460.0,0.00021345,2]
[373435714,1753009850806,-460.0,0.00021345,2]
[373435715,1753009850815,-300.26716745,0.0002135,2]
[373435716,1753009850825,-2289.18923124,0.00021383,5]
[373435717,1753009850835,-151.0,0.00021486,2]
[373435718,1753009850844,-151.0,0.00021524,2]
[373435719,1753009850853,-2289.18923124,0.0002159,5]
[373435720,1753009850863,-1074.71,0.00021616,2]
[373435721,1753009850872,-460.0,0.00021616,2]
[373435722,1753009850882,-460.0,0.00021616,2]
[373435723,1753009850893,-460.0,0.00021619,2]
[373435724,1753009850902,-460.0,0.00021619,2]
[373435725,1753009850911,-2289.18923124,0.00021797,6]
[373435726,1753009850920,-25000.0,0.00021859,2]
[373435727,1753009850929,-1074.71,0.0002189,2]
[373435728,1753009850938,-460.0,0.0002189,2]
[373435729,1753009850947,-460.0,0.0002189,2]
[373435730,1753009850956,-460.0,0.00021893,2]
[373435731,1753009850965,-460.0,0.00021893,2]
[373435732,1753009850975,-136780.15680792,0.00021899,2]
[373435733,1753009850984,-170.0,0.00022,2]
[373435734,1753009850993,-2289.18923124,0.00022003,6]
[373435735,1753009851002,-375.179,0.00022021,2]
[373435736,1753009851012,-417.607,0.00022021,2]
[373435737,1753009851022,-959.16,0.000221,7]
[373435738,1753009851031,-223.0315306,0.00022132,2]
[373435739,1753009851041,-500.0,0.0002216,2]
[373435740,1753009851050,-1074.71,0.00022164,2]
[373435741,1753009851059,-460.0,0.00022164,2]
[373435742,1753009851068,-460.0,0.00022164,2]
[373435743,1753009851078,-544.35,0.00022167,2]
[373435744,1753009851087,-460.0,0.00022167,2]
[373435745,1753009851097,-2879.0,0.000222,7]
[373435746,1753009851107,-300.26716745,0.000222,2]
[373435747,1753009851116,-2289.18923124,0.0002221,6]
[373435748,1753009851126,-154.909053,0.00022254,7]
[373435749,1753009851135,-168.0,0.00022315,2]
[373435750,1753009851146,-151.0,0.00022389,7]
[373435751,1753009851159,-3000.0,0.000224,2]
[373435752,1753009851169,-3000.0,0.0002241,2]
[373435753,1753009851178,-2289.18923124,0.00022417,7]
[373435754,1753009851187,-3000.0,0.0002242,2]
[373435755,1753009851198,-3000.0,0.0002243,2]
[373435756,1753009851207,-1074.71,0.00022438,2]
[373435757,1753009851216,-460.0,0.00022438,2]
[373435758,1753009851227,-460.0,0.00022438,2]
[373435759,1753009851237,-3000.0,0.0002244,2]
[373435760,1753009851246,-460.0,0.00022441,2]
[373435761,1753009851255,-3000.0,0.0002245,2]
[373435762,1753009851265,-3000.0,0.0002246,2]
[373435763,1753009851275,-3000.0,0.0002247,2]
[373435764,1753009851285,-3000.0,0.0002248,2]
[373435765,1753009851295,-3000.0,0.0002249,2]
[373435766,1753009851305,-3000.0,0.000225,2]
[373435767,1753009851314,-3000.0,0.0002251,2]
[373435768,1753009851324,-160.0,0.00022513,3]
[373435769,1753009851333,-3000.0,0.0002252,2]
[373435770,1753009851342,-3000.0,0.0002253,2]
[373435771,1753009851351,-3000.0,0.0002254,2]
[373435772,1753009851361,-3000.0,0.0002255,2]
[373435773,1753009851370,-3000.0,0.0002256,2]
[373435774,1753009851379,-3000.0,0.0002257,2]
[373435775,1753009851389,-3000.0,0.0002258,2]
[373435776,1753009851399,-3000.0,0.0002259,2]
[373435777,1753009851408,-3000.0,0.000226,2]
[373435778,1753009851418,-3000.0,0.0002261,2]
[373435779,1753009851428,-3000.0,0.0002262,2]
[373435780,1753009851437,-2289.18923124,0.00022624,7]
[373435781,1753009851447,-586.79,0.00022626,5]
[373435782,1753009851457,-3000.0,0.0002263,2]
[373435783,1753009851466,-3000.0,0.0002264,2]
[373435784,1753009851476,-3000.0,0.0002265,2]
[373435785,1753009851486,-3000.0,0.0002266,2]
[373435786,1753009851496,-3000.0,0.0002267,2]
[373435787,1753009851505,-3000.0,0.0002268,2]
[373435788,1753009851514,-3000.0,0.0002269,2]
[373435789,1753009851523,-3000.0,0.000227,2]
[373435790,1753009851533,-3000.0,0.0002271,2]
[373435791,1753009851543,-1074.71,0.00022712,2]
[373435792,1753009851552,-460.0,0.00022712,2]
[373435793,1753009851562,-460.0,0.00022712,2]
[373435794,1753009851571,-460.0,0.00022715,2]
[373435795,1753009851581,-3000.0,0.0002272,2]
[373435796,1753009851590,-586.79,0.00022726,4]
[373435797,1753009851600,-3000.0,0.0002273,2]
[373435798,1753009851609,-3000.0,0.0002274,2]
[373435799,1753009851618,-3000.0,0.0002275,2]
[373435800,1753009851627,-15917.01168533,0.00022755,2]
[373435801,1753009851636,-3000.0,0.0002276,2]
[373435802,1753009851646,-3000.0,0.0002277,2]
[373435803,1753009851655,-151.0,0.0002277,7]
[373435804,1753009851664,-151.0,0.0002277,7]
[373435805,1753009851673,-151.0,0.0002277,7]
[373435806,1753009851682,-151.0,0.0002277,7]
[373435807,1753009851692,-153.370387,0.0002277,7]
[373435808,1753009851701,-3000.0,0.0002278,2]
[373435809,1753009851710,-3000.0,0.0002279,2]
[373435810,1753009851719,-151.0,0.0002279,7]
[373435811,1753009851728,-151.0,0.0002279,7]
[373435812,1753009851738,-160.648547,0.0002279,7]
[373435813,1753009851747,-160.648547,0.0002279,7]
[373435814,1753009851756,-3000.0,0.000228,2]
[373435815,1753009851765,-3000.0,0.0002281,2]
[373435816,1753009851775,-3000.0,0.0002282,2]
[373435817,1753009851784,-3000.0,0.0002283,2]
[373435818,1753009851794,-2289.18923124,0.00022831,8]
[373435819,1753009851803,-3188.457764,0.0002284,2]
[373435820,1753009851812,-1074.71,0.00022986,2]
[373435821,1753009851821,-249.4119129,0.00022986,2]
[373435822,1753009851831,-460.0,0.00022986,2]
[373435823,1753009851840,-467.58,0.00022989,2]
[373435824,1753009851850,-160.0,0.00023,3]
[373435825,1753009851860,-215.71456056,0.00023,3]
[373435826,1753009851869,-160.0,0.00023,3]
[373435827,1753009851879,-839.59621281,0.00023,3]
[373435828,1753009851888,-230.98123516,0.00023,3]
[373435829,1753009851898,-525.91036056,0.00023,3]
[373435830,1753009851908,-160.0,0.00023,2]
[373435831,1753009851917,-2289.18923124,0.00023038,8]
[373435832,1753009851927,-300.26716745,0.0002305,2]
[373435833,1753009851936,-647.0,0.00023132,2]
[373435834,1753009851945,-2156.0,0.00023132,2]
[373435835,1753009851955,-968.0,0.00023132,2]
[373435836,1753009851964,-959.16,0.000232,7]
[373435837,1753009851973,-2289.18923124,0.00023245,8]
[373435838,1753009851982,-500.0,0.00023256,2]
[373435839,1753009851992,-1074.71,0.0002326,2]
[373435840,1753009852002,-283.74485612,0.0002326,2]
[373435841,1753009852011,-500.0,0.00023289,2]
[373435842,1753009852020,-389.20231297,0.000234,2]
[373435843,1753009852030,-2289.18923124,0.00023452,9]
[373435844,1753009852039,-1012.71,0.000235,2]
[373435845,1753009852048,-151.0,0.000235,9]
[373435846,1753009852058,-231.28369723,0.00023501,2]
[373435847,1753009852068,-152.362324,0.0002351,8]
[373435848,1753009852077,-1074.71,0.00023534,2]
[373435849,1753009852087,-189424.18270274,0.00023574,2]
[373435850,1753009852097,-151.0,0.00023574,7]
[373435851,1753009852106,-151.0,0.00023574,7]
[373435852,1753009852115,-151.0,0.00023574,7]
[373435853,1753009852125,-160.648547,0.00023574,7]
[373435854,1753009852134,-160.648547,0.00023574,7]
[373435855,1753009852144,-2289.18923124,0.00023659,9]
[373435856,1753009852157,-153.0,0.00023726,2]
[373435857,1753009852166,-153.0,0.00023726,2]
[373435858,1753009852175,-153.0,0.00023726,2]
[373435859,1753009852184,-153.0,0.00023726,2]
[373435860,1753009852194,-153.0,0.00023726,2]
[373435861,1753009852204,-306.0,0.00023726,2]
[373435862,1753009852213,-1074.71,0.00023808,2]
[373435863,1753009852223,-151.0,0.00023812,2]
[373435864,1753009852233,-500.0,0.00023812,2]
[373435865,1753009852242,-500.0,0.00023812,2]
[373435866,1753009852252,-151.39265493,0.00023812,2]
[373435867,1753009852261,-151.0,0.00023812,2]
[373435868,1753009852270,-168.0,0.0002386,2]
[373435869,1753009852280,-2289.18923124,0.00023866,10]
[373435870,1753009852289,-2879.0,0.000239,7]
[373435871,1753009852299,-300.26716745,0.000239,2]
[373435872,1753009852308,-214.5637056,0.000239,7]
[373435873,1753009852319,-170.7,0.000239,4]
[373435874,1753009852328,-199.16135147,0.000239,4]
[373435875,1753009852338,-469.48814711,0.000239,2]
[373435876,1753009852348,-1901.495007,0.000239,2]
[373435877,1753009852358,-472.07520401,0.00023973,2]
[373435878,1753009852368,-500.0,0.00023973,2]
[373435879,1753009852378,-505.21196279,0.00023973,2]
[373435880,1753009852388,-163.646828,0.00023973,2]
[373435881,1753009852400,-460.0,0.00023989,2]
[373435882,1753009852410,-460.0,0.00023989,2]
[373435883,1753009852419,-435.51183762,0.00023992,2]
[373435884,1753009852429,-352.074,0.00023996,2]
[373435885,1753009852440,-500.0,0.00023998,9]
[373435886,1753009852450,-221369.3401766,0.00024,10]
[373435887,1753009852459,-4674.32,0.00024,7]
[373435888,1753009852469,-1000.0,0.00024,2]
[373435889,1753009852479,-1000.0,0.00024,2]
[373435890,1753009852489,-1000.0,0.00024,2]
[373435891,1753009852499,-1000.0,0.00024,2]
[373435892,1753009852509,-1000.0,0.00024,2]
[373435893,1753009852519,-1000.0,0.00024,2]
[373435894,1753009852528,-1000.0,0.00024,2]
[373435895,1753009852538,-472.84,0.00024,2]
[373435896,1753009852547,-224.404707,0.00024,7]
[373435897,1753009852556,-224.404707,0.00024,7]
[373435898,1753009852566,-151.0,0.00024,7]
[373435899,1753009852576,-151.0,0.00024,7]
[373435900,1753009852585,-245.681376,0.00024,7]
[373435901,1753009852595,-151.0,0.00024,7]
[373435902,1753009852605,-151.0,0.00024,7]
[373435903,1753009852614,-215.71456056,0.00024,7]
[373435904,1753009852624,-151.0,0.00024,7]
[373435905,1753009852633,-38730.92,0.00024,2]
[373435906,1753009852645,-151.0,0.00024,7]
[373435907,1753009852655,-152.801717,0.00024,7]
[373435908,1753009852665,-245.015584,0.00024,7]
[373435909,1753009852675,-151.0,0.00024,7]
[373435910,1753009852684,-151.0,0.00024,7]
[373435911,1753009852695,-151.0,0.00024,7]
[373435912,1753009852705,-208.864157,0.00024,7]
[373435913,1753009852715,-208.864157,0.00024,7]
[373435914,1753009852724,-151.0,0.00024,7]
[373435915,1753009852733,-151.0,0.00024,7]
[373435916,1753009852743,-151.0,0.00024,7]
[373435917,1753009852753,-217.977377,0.00024,7]
[373435918,1753009852763,-217.977377,0.00024,7]
[373435919,1753009852773,-151.0,0.00024,7]
[373435920,1753009852783,-151.0,0.00024,7]
[373435921,1753009852792,-160.0,0.00024,7]
[373435922,1753009852802,-160.0,0.00024,10]
[373435923,1753009852811,-150.64208,0.00024,10]
[373435924,1753009852821,-151.0,0.00024,7]
[373435925,1753009852830,-839.59621281,0.00024,7]
[373435926,1753009852840,-525.91036056,0.00024,7]
[373435927,1753009852850,-525.91036056,0.00024,10]
[373435928,1753009852860,-214.5637056,0.00024,10]
[373435929,1753009852870,-151.0,0.00024,7]
[373435930,1753009852880,-160.648547,0.00024,7]
[373435931,1753009852890,-160.648547,0.00024,7]
[373435932,1753009852903,-352.074,0.00024,2]
[373435933,1753009852912,-381.38491215,0.00024007,2]
[373435934,1753009852921,-168.0,0.00024008,2]
[373435935,1753009852930,-653.856,0.0002402,2]
[373435936,1753009852940,-2289.18923124,0.00024072,10]
[373435937,1753009852949,-1074.71,0.00024082,2]
[373435938,1753009852958,-500.0,0.00024086,2]
[373435939,1753009852968,-500.0,0.00024086,2]
[373435940,1753009852978,-151.0,0.00024086,2]
[373435941,1753009852988,-150.64208,0.00024096,8]
[373435942,1753009852997,-653.856,0.0002412,2]
[373435943,1753009853006,-150.64208,0.00024126,9]
[373435944,1753009853017,-174.0,0.00024162,2]
[373435945,1753009853027,-150.64208,0.00024165,3]
[373435946,1753009853037,-653.856,0.0002422,2]
[373435947,1753009853046,-150.64208,0.00024234,9]
[373435948,1753009853056,-2289.18923124,0.00024279,10]
[373435949,1753009853065,-959.16,0.000243,7]
[373435950,1753009853075,-174.0,0.00024312,2]
[373435951,1753009853085,-653.856,0.0002432,2]
[373435952,1753009853095,-1074.93,0.00024356,2]
[373435953,1753009853107,-500.0,0.0002436,2]
[373435954,1753009853216,-500.0,0.0002436,2]
[373435955,1753009853227,-150.64208,0.0002438,8]
[373435956,1753009853237,-653.856,0.0002442,2]
[373435957,1753009853246,-160.0,0.0002445,4]
[373435958,1753009853256,-160.0,0.0002445,5]
[373435959,1753009853265,-168.0,0.0002448,2]
[373435960,1753009853275,-2289.18923124,0.00024486,11]
[373435961,1753009853285,-151.0,0.000245,9]
[373435962,1753009853295,-168.0,0.00024545,2]
[373435963,1753009853305,-150.64208,0.00024548,7]
[373435964,1753009853317,-150.64208,0.0002455,4]
[373435965,1753009853326,-2200.0,0.00024558,2]
[373435966,1753009853335,-500.0,0.00024634,2]
[373435967,1753009853345,-500.0,0.00024634,2]
[373435968,1753009853355,-50694.66253477,0.0002465,2]
[373435969,1753009853365,-224.404707,0.0002465,7]
[373435970,1753009853375,-224.404707,0.0002465,7]
[373435971,1753009853384,-151.0,0.0002465,7]
[373435972,1753009853394,-151.0,0.0002465,7]
[373435973,1753009853403,-151.0,0.0002465,7]
[373435974,1753009853413,-151.0,0.0002465,7]
[373435975,1753009853423,-17250.38987548,0.0002465,2]
[373435976,1753009853433,-174.0,0.00024652,2]
[373435977,1753009853443,-380.0,0.00024658,2]
[373435978,1753009853452,-186.02992583,0.00024658,2]
[373435979,1753009853462,-746.0,0.00024658,2]
[373435980,1753009853471,-151.0,0.00024658,7]
[373435981,1753009853481,-160.648547,0.00024658,7]
[373435982,1753009853490,-160.648547,0.00024658,7]
[373435983,1753009853500,-168.0,0.00024663,2]
[373435984,1753009853510,-500.0,0.0002468,2]
[373435985,1753009853519,-2289.18923124,0.00024693,11]
[373435986,1753009853529,-151.0,0.00024696,7]
[373435987,1753009853538,-151.0,0.00024696,7]
[373435988,1753009853547,-151.0,0.00024696,7]
[373435989,1753009853556,-191.36,0.00024696,7]
[373435990,1753009853565,-151.0,0.00024696,7]
[373435991,1753009853574,-217.977377,0.00024696,7]
[373435992,1753009853583,-217.977377,0.00024696,7]
[373435993,1753009853592,-151.0,0.00024696,7]
[373435994,1753009853602,-151.0,0.00024696,7]
[373435995,1753009853611,-1236.098044,0.000247,5]
[373435996,1753009853620,-1000.0,0.0002472,5]
[373435997,1753009853629,-1000.0,0.0002474,5]
[373435998,1753009853638,-1000.0,0.0002476,5]
[373435999,1753009853649,-500.0,0.00024773,2]
[373436000,1753009853658,-12941.5562568,0.00024774,2]
[373436001,1753009853667,-151.0,0.00024774,7]
[373436002,1753009853677,-1000.0,0.0002478,5]
[373436003,1753009853687,-168.0,0.00024786,2]
[373436004,1753009853696,-924.59634891,0.000248,2]
[373436005,1753009853706,-2000.0,0.000248,2]
[373436006,1753009853715,-2000.0,0.000248,2]
[373436007,1753009853724,-2000.0,0.000248,2]
[373436008,1753009853733,-155.83,0.000248,4]
[373436009,1753009853743,-160.0,0.000248,3]
[373436010,1753009853752,-151.0,0.000248,7]
[373436011,1753009853761,-151.0,0.000248,7]
[373436012,1753009853770,-151.0,0.000248,7]
[373436013,1753009853779,-151.0,0.000248,7]
[373436014,1753009853788,-208.864157,0.000248,7]
[373436015,1753009853797,-208.864157,0.000248,7]
[373436016,1753009853807,-151.0,0.000248,7]
[373436017,1753009853816,-1000.0,0.000248,5]
[373436018,1753009853825,-151.0,0.000248,7]
[373436019,1753009853834,-217.977377,0.000248,7]
[373436020,1753009853843,-217.977377,0.000248,7]
[373436021,1753009853852,-151.0,0.000248,7]
[373436022,1753009853861,-151.0,0.000248,7]
[373436023,1753009853870,-571.25,0.000248,31]
[373436024,1753009853880,-571.25,0.000248,31]
[373436025,1753009853890,-571.25,0.000248,31]
[373436026,1753009853900,-571.25,0.000248,31]
[373436027,1753009853910,-571.25,0.000248,31]
[373436028,1753009853919,-571.25,0.000248,31]
[373436029,1753009853929,-571.25,0.000248,31]
[373436030,1753009853939,-571.25,0.000248,31]
[373436031,1753009853948,-571.25,0.000248,31]
[373436032,1753009853958,-571.25,0.000248,31]
[373436033,1753009853967,-571.25,0.000248,31]
[373436034,1753009853976,-571.25,0.000248,31]
[373436035,1753009853985,-571.25,0.000248,31]
[373436036,1753009853995,-571.25,0.000248,31]
[373436037,1753009854004,-571.25,0.000248,31]
[373436038,1753009854013,-571.25,0.000248,31]
[373436039,1753009854023,-177.9194563,0.000248,2]
[373436040,1753009854032,-305423.884828,0.000248,2]
[373436041,1753009854041,-15917.01168533,0.000248,2]
[373436042,1753009854050,-199.16,0.000248,4]
[373436043,1753009854059,-239.84119403,0.0002487,2]
[373436044,1753009854068,-500.0,0.00024873,2]
[373436045,1753009854077,-622.26003524,0.00024878,3]
[373436046,1753009854086,-310479.37723249,0.00024888,7]
[373436047,1753009854102,-2160.0,0.00024888,7]
[373436058,1753010379288,-460.0,0.00017682,2]
[373436059,1753010379315,-500.0,0.00017682,2]
[373436060,1753010379340,-460.0,0.00017682,2]
[373436061,1753010379365,-690.91,0.00017682,2]
[373436062,1753010379393,-500.0,0.0001778,2]
[373436063,1753010379415,-61.09,0.0001778,2]
[373436066,1753010470744,163.646828,0.00013699,2]
[373436075,1753010853140,425.00000001,0.00027397,120]
[373436164,1753011038612,-228.08096883,0.00017682,2]
[373436165,1753011038623,-425.11924598,0.00017781,2]
[373436166,1753011038634,-460.0,0.00017782,2]
[373436167,1753011038643,-186.01374953,0.00017856,2]
[373436168,1753011038653,-543.41239829,0.00017956,2]
[373436169,1753011038663,-460.0,0.00017999,2]
[373436171,1753011038673,-300.0,0.00017999,2]
[373436172,1753011038683,-47644.38513434,0.00018,2]
[373436173,1753011038693,-5930.36489455,0.00018,2]
[373436174,1753011038703,-460.0,0.00018054,2]
[373436175,1753011038712,-460.0,0.00018054,2]
[373436176,1753011038723,-460.0,0.00018054,2]
[373436177,1753011038733,-460.0,0.00018056,2]
[373436178,1753011038742,-460.0,0.00018273,2]
[373436179,1753011038752,-536.08,0.00018328,2]
[373436180,1753011038762,-460.0,0.00018328,2]
[373436181,1753011038771,-460.0,0.0001833,2]
[373436182,1753011038781,-213.9606534,0.00018336,2]
[373436183,1753011038791,-460.0,0.00018547,2]
[373436184,1753011038801,-460.0,0.00018602,2]
[373436185,1753011038810,-460.0,0.00018604,2]
[373436186,1753011038819,-460.0,0.00018821,2]
[373436187,1753011038828,-460.0,0.00018876,2]
[373436188,1753011038837,-460.0,0.00018878,2]
[373436189,1753011038847,-609.26021898,0.000189,2]
[373436190,1753011038856,-460.0,0.00019095,2]
[373436191,1753011038866,-609.26021885,0.00019141,2]
[373436192,1753011038875,-460.0,0.0001915,2]
[373436193,1753011038885,-462.22,0.00019152,2]
[373436194,1753011038895,-158.658993,0.00019178,2]
[373436195,1753011038904,-460.0,0.00019325,2]
[373436196,1753011038914,-460.0,0.00019369,2]
[373436197,1753011038924,-609.26021885,0.00019383,2]
[373436198,1753011038933,-160.0,0.00019398,2]
[373436199,1753011038942,-230.98123516,0.00019398,2]
[373436200,1753011038951,-160.0,0.00019398,2]
[373436201,1753011038961,-525.91036056,0.00019398,2]
[373436202,1753011039104,-839.59621281,0.00019398,2]
[373436203,1753011039114,-214.5637056,0.00019398,2]
[373436204,1753011039124,-476.42619115,0.00019398,2]
[373436205,1753011039133,-12615.16111038,0.00019398,2]
[373436206,1753011039143,-460.0,0.00019424,2]
[373436207,1753011039152,-581.54,0.00019599,2]
[373436208,1753011039162,-500.0,0.00019623,2]
[373436209,1753011039171,-460.0,0.00019623,2]
[373436210,1753011039180,-609.26021885,0.00019624,2]
[373436211,1753011039189,-460.0,0.00019643,2]
[373436212,1753011039199,-343.25,0.00019698,2]
[373436213,1753011039208,-609.26021885,0.00019866,2]
[373436214,1753011039218,-581.54,0.00019873,2]
[373436215,1753011039228,-460.0,0.00019917,2]
[373436216,1753011039239,-222.66,0.0001999,3]
[373436217,1753011039248,-667.99,0.0001999,3]
[373436218,1753011039257,-14346.20478963,0.0002,2]
[373436219,1753011039267,-3194.4852885,0.0002,2]
[373436220,1753011039276,-362.71658097,0.0002,2]
[373436221,1753011039285,-71021.39958333,0.0002,5]
[373436222,1753011039294,-35692.89985663,0.0002,2]
[373436223,1753011039304,-609.26021885,0.00020107,2]
[373436224,1753011039314,-460.0,0.00020147,2]
[373436225,1753011039323,-460.0,0.00020147,2]
[373436226,1753011039334,-460.0,0.00020147,2]
[373436227,1753011039344,-460.0,0.00020147,2]
[373436228,1753011039353,-662.13,0.00020147,2]
[373436229,1753011039363,-581.54,0.00020147,2]
[373436230,1753011039373,-460.0,0.00020191,2]
[373436231,1753011039382,-321.85436304,0.00020322,2]